fUSD/lending_fUSD_20260611
["ID","MTS","AMOUNT","RATE_DAILY","PERIOD"]
[424787295,1781164247000,-500.0,0.00011551,2]
[424787307,1781164247000,-500.0,0.00011551,2]
[424787303,1781164247000,-500.0,0.00011551,2]
[424787318,1781164247000,-500.0,0.00011551,2]
[424787313,1781164247000,-500.0,0.00011551,2]
[424787315,1781164247000,-500.0,0.00011551,2]
[424787314,1781164247000,-500.0,0.00011551,2]
[424787311,1781164247000,-500.0,0.00011551,2]
[424787316,1781164247000,-500.0,0.00011551,2]
[424787312,1781164247000,-500.0,0.00011551,2]
[424787310,1781164247000,-500.0,0.00011551,2]
[424787309,1781164247000,-500.0,0.00011551,2]
[424787317,1781164247000,-500.0,0.00011551,2]
[424787319,1781164247000,-500.0,0.00011551,2]
[424787355,1781164248000,-500.0,0.00011551,2]
[424787366,1781164248000,-500.0,0.00011551,2]
[424787364,1781164248000,-500.0,0.00011551,2]
[424787363,1781164248000,-468.05594912,0.00011551,2]
[424787357,1781164248000,-500.0,0.00011551,2]
[424787361,1781164248000,-500.0,0.00011551,2]
[424787359,1781164248000,-500.0,0.00011551,2]
[424787356,1781164248000,-500.0,0.00011551,2]
[424787353,1781164248000,-500.0,0.00011551,2]
[424787360,1781164248000,-164.08593529,0.00011551,2]
[424787358,1781164248000,-500.0,0.00011551,2]
[424787362,1781164248000,-500.0,0.00011551,2]
[424787352,1781164248000,-500.0,0.00011551,2]
[424787348,1781164248000,-558.12131975,0.00011551,2]
[424787349,1781164248000,-506.55656557,0.00011551,2]
[424787351,1781164248000,-500.0,0.00011551,2]
[424787350,1781164248000,-500.0,0.00011551,2]
[424787367,1781164248000,-500.0,0.00011551,2]
[424787354,1781164248000,-500.0,0.00011551,2]
[424787370,1781164248000,-500.0,0.00011551,2]
[424787365,1781164248000,-293.08737346,0.00011551,2]
[424787369,1781164248000,-500.0,0.00011551,2]
[424787368,1781164248000,-500.0,0.00011551,2]
[424787389,1781164248000,-52608.20757323,0.00011552,2]
[424787388,1781164248000,-500.0,0.00011551,2]
[424787387,1781164248000,-500.0,0.00011551,2]
[424787379,1781164248000,-500.0,0.00011551,2]
[424787377,1781164248000,-500.0,0.00011551,2]
[424787383,1781164248000,-500.0,0.00011551,2]
[424787381,1781164248000,-500.0,0.00011551,2]
[424787382,1781164248000,-500.0,0.00011551,2]
[424787386,1781164248000,-500.0,0.00011551,2]
[424787380,1781164248000,-500.0,0.00011551,2]
[424787378,1781164248000,-500.0,0.00011551,2]
[424787384,1781164248000,-350.0,0.00011551,2]
[424787375,1781164248000,-500.0,0.00011551,2]
[424787376,1781164248000,-350.0,0.00011551,2]
[424787374,1781164248000,-500.0,0.00011551,2]
[424787373,1781164248000,-500.0,0.00011551,2]
[424787371,1781164248000,-500.0,0.00011551,2]
[424787385,1781164248000,-500.0,0.00011551,2]
[424787372,1781164248000,-500.0,0.00011551,2]
[424787390,1781164531000,500.0,9.5e-05,3]
[424787391,1781164574000,800.0,9.5e-05,3]
[424787392,1781164609000,300.0,9.5e-05,3]
[424787412,1781164702000,1700.0,9.5e-05,3]
[424787415,1781164744000,6500.0,9.5e-05,3]
[424787436,1781165243000,9800.0,9.5e-05,3]
[424787454,1781165433000,-284.66353698,7.741e-05,2]
[424787476,1781165433000,-4000.0,8.387e-05,2]
[424787477,1781165433000,-4000.0,8.387e-05,2]
[424787475,1781165433000,-299.99,8.342e-05,2]
[424787474,1781165433000,-150.0,8.342e-05,2]
[424787472,1781165433000,-4169.41,8.261e-05,2]
[424787473,1781165433000,-150.0,8.29e-05,2]
[424787469,1781165433000,-159.78,8.219e-05,2]
[424787471,1781165433000,-9999.99,8.261e-05,2]
[424787470,1781165433000,-150.0,8.261e-05,2]
[424787468,1781165433000,-150.0,8.18e-05,2]
[424787455,1781165433000,-1463.75826784,7.741e-05,2]
[424787467,1781165433000,-4319.543673,8.178e-05,2]
[424787464,1781165433000,-85.66966987,8.082e-05,2]
[424787453,1781165433000,-688.13647899,7.625e-05,2]
[424787463,1781165433000,-741.10780409,8.082e-05,2]
[424787460,1781165433000,-444.0,8.082e-05,2]
[424787462,1781165433000,-808.4534481,8.082e-05,2]
[424787461,1781165433000,-302.77030002,8.082e-05,2]
[424787480,1781165433000,-500.0,8.387e-05,2]
[424787459,1781165433000,-155.79877792,8.082e-05,2]
[424787457,1781165433000,-15605.04242296,8.079e-05,2]
[424787456,1781165433000,-150.0,7.857e-05,2]
[424787466,1781165433000,-1834.64,8.143e-05,2]
[424787458,1781165433000,-774.90757704,8.079e-05,2]
[424787465,1781165433000,-150.0,8.1e-05,2]
[424787482,1781165433000,-2000.0,8.406e-05,2]
[424787478,1781165433000,-2859.09399189,8.387e-05,2]
[424787506,1781165433000,-165.1,8.97e-05,2]
[424787504,1781165433000,-598.47,8.766e-05,2]
[424787505,1781165433000,-150.0,8.826e-05,2]
[424787503,1781165433000,-1000.0,8.729e-05,2]
[424787501,1781165433000,-1892.16,8.708e-05,2]
[424787502,1781165433000,-165.55,8.722e-05,2]
[424787500,1781165433000,-1139.78,8.687e-05,2]
[424787498,1781165433000,-250.0,8.643e-05,2]
[424787499,1781165433000,-159.78,8.676e-05,2]
[424787497,1781165433000,-774.30738054,8.643e-05,2]
[424787495,1781165433000,-200.0,8.613e-05,2]
[424787493,1781165433000,-433.0,8.556e-05,2]
[424787479,1781165433000,-250.0,8.387e-05,2]
[424787492,1781165433000,-247.9,8.546e-05,2]
[424787481,1781165433000,-500.0,8.387e-05,2]
[424787483,1781165433000,-150.0,8.423e-05,2]
[424787484,1781165433000,-4103.61,8.423e-05,2]
[424787486,1781165433000,-7040.68,8.423e-05,2]
[424787487,1781165433000,-1909.16,8.423e-05,2]
[424787496,1781165433000,-4000.0,8.643e-05,2]
[424787488,1781165433000,-150.99,8.423e-05,2]
[424787490,1781165433000,-150.0,8.476e-05,2]
[424787489,1781165433000,-9999.99,8.423e-05,2]
[424787491,1781165433000,-150.0,8.504e-05,2]
[424787494,1781165433000,-176.47627677,8.57e-05,2]
[424787485,1781165433000,-999.99,8.423e-05,2]
[424787549,1781165434000,-150.0,9.17e-05,2]
[424787543,1781165434000,-178.461955,9.164e-05,2]
[424787544,1781165434000,-416.298666,9.164e-05,2]
[424787542,1781165434000,-161.752054,9.164e-05,2]
[424787540,1781165434000,-1653.921864,9.164e-05,2]
[424787537,1781165434000,-150.0,9.15e-05,2]
[424787538,1781165434000,-254.58489995,9.155e-05,2]
[424787539,1781165434000,-150.0,9.16e-05,2]
[424787533,1781165434000,-254.58489995,9.135e-05,2]
[424787547,1781165434000,-254.58489995,9.166e-05,2]
[424787541,1781165434000,-1294.079174,9.164e-05,2]
[424787550,1781165434000,-150.0,9.17e-05,2]
[424787553,1781165434000,-150.0,9.188e-05,2]
[424787546,1781165434000,-150.0,9.166e-05,2]
[424787545,1781165434000,-980.200958,9.164e-05,2]
[424787552,1781165434000,-254.58489995,9.186e-05,2]
[424787551,1781165434000,-254.58489995,9.176e-05,2]
[424787536,1781165434000,-150.0,9.146e-05,2]
[424787555,1781165434000,-150.0,9.194e-05,2]
[424787554,1781165434000,-150.0,9.189e-05,2]
[424787557,1781165434000,-254.58489995,9.196e-05,2]
[424787558,1781165434000,-254.58489995,9.206e-05,2]
[424787562,1781165434000,-150.0,9.218e-05,2]
[424787556,1781165434000,-150.0,9.194e-05,2]
[424787548,1781165434000,-150.0,9.169e-05,2]
[424787535,1781165434000,-150.0,9.146e-05,2]
[424787529,1781165434000,-150.0,9.131e-05,2]
[424787532,1781165434000,-500.0,9.135e-05,2]
[424787507,1781165434000,-150.0,9.074e-05,2]
[424787508,1781165434000,-150.0,9.074e-05,2]
[424787509,1781165434000,-150.0,9.074e-05,2]
[424787510,1781165434000,-150.0,9.074e-05,2]
[424787511,1781165434000,-150.0,9.074e-05,2]
[424787513,1781165434000,-150.0,9.074e-05,2]
[424787512,1781165434000,-150.0,9.074e-05,2]
[424787514,1781165434000,-254.58489995,9.074e-05,2]
[424787516,1781165434000,-254.58489995,9.084e-05,2]
[424787518,1781165434000,-150.0,9.093e-05,2]
[424787515,1781165434000,-150.0,9.074e-05,2]
[424787534,1781165434000,-254.58489995,9.145e-05,2]
[424787517,1781165434000,-253.1,9.09e-05,2]
[424787519,1781165434000,-254.58489995,9.094e-05,2]
[424787521,1781165434000,-150.0,9.098e-05,2]
[424787522,1781165434000,-150.0,9.103e-05,2]
[424787524,1781165434000,-150.0,9.112e-05,2]
[424787525,1781165434000,-254.58489995,9.115e-05,2]
[424787526,1781165434000,-150.0,9.122e-05,2]
[424787523,1781165434000,-254.58489995,9.105e-05,2]
[424787561,1781165434000,-150.0,9.218e-05,2]
[424787528,1781165434000,-254.58489995,9.125e-05,2]
[424787531,1781165434000,-159.78,9.132e-05,2]
[424787530,1781165434000,-150.0,9.132e-05,2]
[424787520,1781165434000,-150.0,9.098e-05,2]
[424787560,1781165434000,-254.58489995,9.217e-05,2]
[424787527,1781165434000,-150.0,9.122e-05,2]
[424787564,1781165434000,-150.0,9.218e-05,2]
[424787593,1781165434000,-185.28124995,9.31e-05,2]
[424787592,1781165434000,-500.0,9.31e-05,2]
[424787591,1781165434000,-500.0,9.31e-05,2]
[424787595,1781165434000,-150.0,9.314e-05,2]
[424787597,1781165434000,-150.0,9.321e-05,2]
[424787598,1781165434000,-254.58489995,9.329e-05,2]
[424787615,1781165434000,-150.0,9.378e-05,2]
[424787600,1781165434000,-150.0,9.338e-05,2]
[424787606,1781165434000,-1712.53325092,9.351e-05,2]
[424787599,1781165434000,-150.0,9.333e-05,2]
[424787603,1781165434000,-150.0,9.34e-05,2]
[424787594,1781165434000,-150.0,9.314e-05,2]
[424787602,1781165434000,-254.58489995,9.339e-05,2]
[424787604,1781165434000,-150.0,9.349e-05,2]
[424787605,1781165434000,-254.58489995,9.349e-05,2]
[424787607,1781165434000,-436.2189,9.357e-05,2]
[424787608,1781165434000,-254.58489995,9.359e-05,2]
[424787609,1781165434000,-150.0,9.359e-05,2]
[424787610,1781165434000,-150.0,9.362e-05,2]
[424787612,1781165434000,-150.0,9.362e-05,2]
[424787611,1781165434000,-150.0,9.362e-05,2]
[424787616,1781165434000,-254.58489995,9.379e-05,2]
[424787613,1781165434000,-150.0,9.362e-05,2]
[424787614,1781165434000,-254.58489995,9.369e-05,2]
[424787601,1781165434000,-150.0,9.338e-05,2]
[424787590,1781165434000,-500.0,9.31e-05,2]
[424787596,1781165434000,-254.58489995,9.318e-05,2]
[424787589,1781165434000,-254.58489995,9.308e-05,2]
[424787563,1781165434000,-150.0,9.218e-05,2]
[424787565,1781165434000,-150.0,9.226e-05,2]
[424787567,1781165434000,-254.58489995,9.237e-05,2]
[424787569,1781165434000,-150.0,9.242e-05,2]
[424787568,1781165434000,-150.0,9.242e-05,2]
[424787588,1781165434000,-150.0,9.304e-05,2]
[424787572,1781165434000,-254.58489995,9.247e-05,2]
[424787570,1781165434000,-150.0,9.245e-05,2]
[424787573,1781165434000,-150.0,9.257e-05,2]
[424787571,1781165434000,-150.0,9.247e-05,2]
[424787575,1781165434000,-150.0,9.264e-05,2]
[424787574,1781165434000,-254.58489995,9.257e-05,2]
[424787566,1781165434000,-254.58489995,9.227e-05,2]
[424787578,1781165434000,-150.0,9.266e-05,2]
[424787576,1781165434000,-165.1,9.266e-05,2]
[424787585,1781165434000,-150.0,9.29e-05,2]
[424787587,1781165434000,-150.0,9.302e-05,2]
[424787586,1781165434000,-254.58489995,9.298e-05,2]
[424787584,1781165434000,-150.0,9.29e-05,2]
[424787583,1781165434000,-254.58489995,9.288e-05,2]
[424787559,1781165434000,-150.0,9.207e-05,2]
[424787582,1781165434000,-150.0,9.283e-05,2]
[424787577,1781165434000,-150.0,9.266e-05,2]
[424787580,1781165434000,-150.0,9.276e-05,2]
[424787579,1781165434000,-254.58489995,9.267e-05,2]
[424787581,1781165434000,-254.58489995,9.278e-05,2]
[424787619,1781165435000,-254.58489995,9.39e-05,2]
[424787617,1781165435000,-150.0,9.386e-05,2]
[424787618,1781165435000,-150.0,9.386e-05,2]
[424787623,1781165435000,-49834.08604505,9.405e-05,2]
[424787620,1781165435000,-150.0,9.391e-05,2]
[424787621,1781165435000,-150.0,9.397e-05,2]
[424787622,1781165435000,-254.58489995,9.4e-05,2]
[424787624,1781165435000,-57137.44576297,9.405e-05,2]
[424787625,1781165435000,-1507.28120465,9.405e-05,2]
[424787627,1781165435000,-2162.22959595,9.405e-05,2]
[424787626,1781165435000,-356.44950306,9.405e-05,2]
[424787635,1781165437000,-596.11265203,8.067e-05,2]
[424787634,1781165437000,-448.0,8.067e-05,2]
[424787636,1781165437000,-808.30734797,8.067e-05,2]
[424787637,1781165437000,-350.36550338,9.405e-05,2]
[424787639,1781165437000,-3134.44005916,9.405e-05,2]
[424787640,1781165437000,-983.744131,9.405e-05,2]
[424787641,1781165437000,-781.46068898,9.405e-05,2]
[424787642,1781165437000,-5879.61075856,9.405e-05,2]
[424787638,1781165437000,-418.98263072,9.405e-05,2]
[424787645,1781165439000,-735102.96353971,9.405e-05,2]
[424787646,1781165439000,-534.4486427,9.405e-05,2]
[424787647,1781165439000,-14078.95110786,9.405e-05,2]
[424787644,1781165439000,-616.95700799,9.405e-05,2]
[424787650,1781165439000,-150.0,9.41e-05,2]
[424787648,1781165439000,-85208.44101826,9.405e-05,2]
[424787652,1781165439000,-254.58489995,9.41e-05,2]
[424787649,1781165439000,-500.0,9.409e-05,2]
[424787651,1781165439000,-150.0,9.41e-05,2]
[424787690,1781165440000,-150.0,9.506e-05,2]
[424787684,1781165440000,-254.58489995,9.502e-05,2]
[424787686,1781165440000,-261.657,9.504e-05,2]
[424787683,1781165440000,-1000.0,9.499e-05,2]
[424787687,1781165440000,-150.0,9.506e-05,2]
[424787694,1781165440000,-150.0,9.53e-05,2]
[424787693,1781165440000,-254.58489995,9.522e-05,2]
[424787689,1781165440000,-150.0,9.506e-05,2]
[424787688,1781165440000,-150.0,9.506e-05,2]
[424787692,1781165440000,-254.58489995,9.512e-05,2]
[424787691,1781165440000,-150.0,9.512e-05,2]
[424787695,1781165440000,-150.0,9.53e-05,2]
[424787702,1781165440000,-180.46972026,9.551e-05,2]
[424787697,1781165440000,-150.0,9.532e-05,2]
[424787696,1781165440000,-150.0,9.531e-05,2]
[424787699,1781165440000,-150.0,9.535e-05,2]
[424787700,1781165440000,-254.58489995,9.542e-05,2]
[424787701,1781165440000,-150.0,9.55e-05,2]
[424787685,1781165440000,-4783.761,9.504e-05,2]
[424787705,1781165440000,-150.0,9.554e-05,2]
[424787703,1781165440000,-254.58489995,9.553e-05,2]
[424787704,1781165440000,-150.0,9.554e-05,2]
[424787706,1781165440000,-165.1,9.562e-05,2]
[424787708,1781165440000,-150.0,9.564e-05,2]
[424787710,1781165440000,-254.58489995,9.573e-05,2]
[424787709,1781165440000,-150.0,9.569e-05,2]
[424787698,1781165440000,-254.58489995,9.532e-05,2]
[424787681,1781165440000,-254.58489995,9.492e-05,2]
[424787675,1781165440000,-254.58489995,9.471e-05,2]
[424787682,1781165440000,-150.0,9.492e-05,2]
[424787707,1781165440000,-254.58489995,9.563e-05,2]
[424787654,1781165440000,-150.0,9.41e-05,2]
[424787656,1781165440000,-150.0,9.42e-05,2]
[424787655,1781165440000,-150.0,9.416e-05,2]
[424787659,1781165440000,-150.0,9.434e-05,2]
[424787657,1781165440000,-254.58489995,9.42e-05,2]
[424787658,1781165440000,-254.58489995,9.43e-05,2]
[424787660,1781165440000,-150.0,9.434e-05,2]
[424787661,1781165440000,-150.0,9.435e-05,2]
[424787662,1781165440000,-150.0,9.441e-05,2]
[424787663,1781165440000,-254.58489995,9.441e-05,2]
[424787665,1781165440000,-254.58489995,9.451e-05,2]
[424787679,1781165440000,-150.0,9.482e-05,2]
[424787664,1781165440000,-150.0,9.448e-05,2]
[424787667,1781165440000,-59367.5107,9.451e-05,2]
[424787668,1781165440000,-6821.7941,9.451e-05,2]
[424787669,1781165440000,-150.0,9.454e-05,2]
[424787670,1781165440000,-1859.160221,9.455e-05,2]
[424787672,1781165440000,-150.0,9.458e-05,2]
[424787674,1781165440000,-254.58489995,9.461e-05,2]
[424787671,1781165440000,-2000.0,9.457e-05,2]
[424787673,1781165440000,-150.0,9.458e-05,2]
[424787676,1781165440000,-150.0,9.473e-05,2]
[424787677,1781165440000,-150.0,9.477e-05,2]
[424787678,1781165440000,-254.58489995,9.481e-05,2]
[424787680,1781165440000,-150.0,9.482e-05,2]
[424787666,1781165440000,-1500000.0,9.451e-05,2]
[424787711,1781165440000,-150.0,9.578e-05,2]
[424787757,1781165440000,-254.58489995,9.695e-05,2]
[424787714,1781165440000,-254.58489995,9.583e-05,2]
[424787745,1781165440000,-180.46972025,9.65e-05,2]
[424787746,1781165440000,-254.58489995,9.654e-05,2]
[424787748,1781165440000,-254.58489995,9.665e-05,2]
[424787747,1781165440000,-150.0,9.664e-05,2]
[424787750,1781165440000,-150.0,9.674e-05,2]
[424787753,1781165440000,-150.0,9.679e-05,2]
[424787749,1781165440000,-4702.0,9.671e-05,2]
[424787751,1781165440000,-150.0,9.674e-05,2]
[424787752,1781165440000,-254.58489995,9.675e-05,2]
[424787754,1781165440000,-150.0,9.683e-05,2]
[424787756,1781165440000,-254.58489995,9.685e-05,2]
[424787758,1781165440000,-151.0,9.696e-05,2]
[424787743,1781165440000,-150.0,9.65e-05,2]
[424787761,1781165440000,-1168.92649491,9.698e-05,3]
[424787760,1781165440000,-199.48738674,9.698e-05,3]
[424787762,1781165440000,-1168.92649491,9.698e-05,3]
[424787763,1781165440000,-1168.92649491,9.698e-05,3]
[424787765,1781165440000,-1168.92649491,9.698e-05,3]
[424787764,1781165440000,-1168.92649491,9.698e-05,3]
[424787766,1781165440000,-153.42585405,9.698e-05,2]
[424787769,1781165440000,-150.0,9.698e-05,2]
[424787768,1781165440000,-150.0,9.698e-05,2]
[424787771,1781165440000,-150.0,9.702e-05,2]
[424787770,1781165440000,-29500.0,9.7e-05,3]
[424787772,1781165440000,-254.58489995,9.705e-05,2]
[424787713,1781165440000,-150.0,9.578e-05,2]
[424787759,1781165440000,-189.11594884,9.698e-05,2]
[424787742,1781165440000,-150.0,9.65e-05,2]
[424787755,1781165440000,-500.0,9.683e-05,2]
[424787741,1781165440000,-150.0,9.65e-05,2]
[424787715,1781165440000,-150.0,9.588e-05,2]
[424787744,1781165440000,-180.46972026,9.65e-05,2]
[424787716,1781165440000,-159.78,9.589e-05,2]
[424787717,1781165440000,-150.0,9.592e-05,2]
[424787718,1781165440000,-254.58489995,9.593e-05,2]
[424787721,1781165440000,-2000.0,9.599e-05,2]
[424787719,1781165440000,-2500.0,9.598e-05,2]
[424787720,1781165440000,-33277.9515,9.599e-05,2]
[424787723,1781165440000,-8579.2581,9.599e-05,2]
[424787722,1781165440000,-6820.62317621,9.599e-05,2]
[424787725,1781165440000,-150.0,9.602e-05,2]
[424787728,1781165440000,-150.0,9.607e-05,2]
[424787724,1781165440000,-19600.0,9.6e-05,3]
[424787729,1781165440000,-254.58489995,9.614e-05,2]
[424787712,1781165440000,-150.0,9.578e-05,2]
[424787727,1781165440000,-254.58489995,9.604e-05,2]
[424787738,1781165440000,-254.58489995,9.644e-05,2]
[424787740,1781165440000,-150.0,9.65e-05,2]
[424787735,1781165440000,-150.0,9.626e-05,2]
[424787734,1781165440000,-150.0,9.626e-05,2]
[424787737,1781165440000,-254.58489995,9.634e-05,2]
[424787736,1781165440000,-160.0,9.632e-05,2]
[424787739,1781165440000,-150.0,9.645e-05,2]
[424787731,1781165440000,-150.0,9.624e-05,2]
[424787732,1781165440000,-254.58489995,9.624e-05,2]
[424787730,1781165440000,-150.0,9.621e-05,2]
[424787726,1781165440000,-150.0,9.602e-05,2]
[424787733,1781165440000,-150.0,9.626e-05,2]
[424787814,1781165441000,-150.0,9.818e-05,2]
[424787813,1781165441000,-254.58489995,9.817e-05,2]
[424787811,1781165441000,-254.58489995,9.807e-05,2]
[424787810,1781165441000,-150.0,9.807e-05,2]
[424787808,1781165441000,-39300.0,9.8e-05,3]
[424787805,1781165441000,-150.0,9.794e-05,2]
[424787809,1781165441000,-167.82,9.803e-05,2]
[424787806,1781165441000,-150.0,9.797e-05,2]
[424787807,1781165441000,-254.58489995,9.797e-05,2]
[424787803,1781165441000,-150.0,9.794e-05,2]
[424787815,1781165441000,-150.0,9.818e-05,2]
[424787812,1781165441000,-150.0,9.816e-05,2]
[424787817,1781165441000,-254.58489995,9.828e-05,2]
[424787823,1781165441000,-150.0,9.852e-05,2]
[424787816,1781165441000,-150.0,9.823e-05,2]
[424787819,1781165441000,-254.58489995,9.838e-05,2]
[424787824,1781165441000,-150.0,9.854e-05,2]
[424787821,1781165441000,-150.0,9.842e-05,2]
[424787820,1781165441000,-150.0,9.842e-05,2]
[424787829,1781165441000,-254.58489995,9.868e-05,2]
[424787822,1781165441000,-254.58489995,9.848e-05,2]
[424787825,1781165441000,-165.1,9.858e-05,2]
[424787826,1781165441000,-254.58489995,9.858e-05,2]
[424787827,1781165441000,-150.0,9.866e-05,2]
[424787830,1781165441000,-150.0,9.873e-05,2]
[424787828,1781165441000,-150.0,9.866e-05,2]
[424787804,1781165441000,-150.0,9.794e-05,2]
[424787818,1781165441000,-150.0,9.835e-05,2]
[424787802,1781165441000,-150.0,9.794e-05,2]
[424787774,1781165441000,-255.0,9.709e-05,2]
[424787800,1781165441000,-150.0,9.778e-05,2]
[424787834,1781165441000,-150.0,9.89e-05,2]
[424787776,1781165441000,-172.5,9.711e-05,2]
[424787773,1781165441000,-150.0,9.708e-05,2]
[424787777,1781165441000,-172.5,9.711e-05,2]
[424787780,1781165441000,-150.0,9.721e-05,2]
[424787775,1781165441000,-172.5,9.711e-05,2]
[424787779,1781165441000,-254.58489995,9.716e-05,2]
[424787778,1781165441000,-150.0,9.716e-05,2]
[424787781,1781165441000,-150.0,9.722e-05,2]
[424787783,1781165441000,-254.58489995,9.726e-05,2]
[424787782,1781165441000,-150.0,9.722e-05,2]
[424787784,1781165441000,-215.95576085,9.734e-05,2]
[424787785,1781165441000,-254.58489995,9.736e-05,2]
[424787788,1781165441000,-150.0,9.746e-05,2]
[424787790,1781165441000,-254.58489995,9.746e-05,2]
[424787789,1781165441000,-150.0,9.746e-05,2]
[424787791,1781165441000,-150.0,9.746e-05,2]
[424787787,1781165441000,-150.0,9.74e-05,2]
[424787786,1781165441000,-150.0,9.737e-05,2]
[424787792,1781165441000,-254.58489995,9.756e-05,2]
[424787795,1781165441000,-254.58489995,9.766e-05,2]
[424787794,1781165441000,-150.0,9.765e-05,2]
[424787793,1781165441000,-150.0,9.759e-05,2]
[424787797,1781165441000,-150.0,9.77e-05,2]
[424787796,1781165441000,-150.0,9.77e-05,2]
[424787799,1781165441000,-254.58489995,9.777e-05,2]
[424787798,1781165441000,-1139.78,9.773e-05,2]
[424787801,1781165441000,-254.58489995,9.787e-05,2]
[424787833,1781165441000,-254.58489995,9.889e-05,2]
[424787836,1781165441000,-150.0,9.892e-05,2]
[424787835,1781165441000,-150.0,9.89e-05,2]
[424787866,1781165441000,-150.0,9.991e-05,2]
[424787865,1781165441000,-150.0,9.987e-05,2]
[424787871,1781165441000,-500.0,9.999e-05,2]
[424787869,1781165441000,-500.0,9.999e-05,2]
[424787870,1781165441000,-500.0,9.999e-05,2]
[424787874,1781165441000,-500.0,9.999e-05,2]
[424787873,1781165441000,-500.0,9.999e-05,2]
[424787872,1781165441000,-500.0,9.999e-05,2]
[424787875,1781165441000,-500.0,9.999e-05,2]
[424787877,1781165441000,-500.0,9.999e-05,2]
[424787876,1781165441000,-500.0,9.999e-05,2]
[424787880,1781165441000,-500.0,9.999e-05,2]
[424787878,1781165441000,-500.0,9.999e-05,2]
[424787879,1781165441000,-500.0,9.999e-05,2]
[424787881,1781165441000,-500.0,9.999e-05,2]
[424787883,1781165441000,-500.0,9.999e-05,2]
[424787882,1781165441000,-500.0,9.999e-05,2]
[424787885,1781165441000,-500.0,9.999e-05,2]
[424787884,1781165441000,-500.0,9.999e-05,2]
[424787886,1781165441000,-500.0,9.999e-05,2]
[424787889,1781165441000,-500.0,9.999e-05,2]
[424787890,1781165441000,-500.0,9.999e-05,2]
[424787887,1781165441000,-500.0,9.999e-05,2]
[424787891,1781165441000,-500.0,9.999e-05,2]
[424787893,1781165441000,-500.0,9.999e-05,2]
[424787892,1781165441000,-500.0,9.999e-05,2]
[424787894,1781165441000,-500.0,9.999e-05,2]
[424787868,1781165441000,-150.0,9.996e-05,2]
[424787867,1781165441000,-254.58489995,9.991e-05,2]
[424787888,1781165441000,-500.0,9.999e-05,2]
[424787863,1781165441000,-150.0,9.986e-05,2]
[424787864,1781165441000,-150.0,9.986e-05,2]
[424787837,1781165441000,-150.0,9.899e-05,2]
[424787831,1781165441000,-254.58489995,9.879e-05,2]
[424787832,1781165441000,-150.0,9.881e-05,2]
[424787839,1781165441000,-49200.0,9.9e-05,3]
[424787842,1781165441000,-150.0,9.911e-05,2]
[424787841,1781165441000,-150.0,9.909e-05,2]
[424787840,1781165441000,-254.58489995,9.909e-05,2]
[424787843,1781165441000,-150.0,9.914e-05,2]
[424787849,1781165441000,-150.0,9.938e-05,2]
[424787848,1781165441000,-150.0,9.938e-05,2]
[424787846,1781165441000,-254.58489995,9.929e-05,2]
[424787847,1781165441000,-150.0,9.93e-05,2]
[424787845,1781165441000,-254.58489995,9.919e-05,2]
[424787838,1781165441000,-254.58489995,9.899e-05,2]
[424787850,1781165441000,-150.0,9.938e-05,2]
[424787844,1781165441000,-150.0,9.914e-05,2]
[424787860,1781165441000,-150.0,9.968e-05,2]
[424787862,1781165441000,-254.58489995,9.98e-05,2]
[424787859,1781165441000,-150.0,9.967e-05,2]
[424787858,1781165441000,-150.0,9.962e-05,2]
[424787861,1781165441000,-254.58489995,9.97e-05,2]
[424787857,1781165441000,-150.0,9.962e-05,2]
[424787853,1781165441000,-150.0,9.949e-05,2]
[424787854,1781165441000,-254.58489995,9.95e-05,2]
[424787855,1781165441000,-500.0,9.957e-05,2]
[424787851,1781165441000,-150.0,9.938e-05,2]
[424787856,1781165441000,-254.58489995,9.96e-05,2]
[424787852,1781165441000,-254.58489995,9.94e-05,2]
[424787929,1781165442000,-500.0,9.999e-05,2]
[424787930,1781165442000,-500.0,9.999e-05,2]
[424787927,1781165442000,-500.0,9.999e-05,2]
[424787921,1781165442000,-500.0,9.999e-05,2]
[424787922,1781165442000,-500.0,9.999e-05,2]